bitfinex/quotes_ETHUSD_20250523
["timestamp","ask_amount","ask_price","bid_price","bid_amount"]
[1748043831192,3.9936825,2504.0,2503.6,17.9903]
[1748043831372,3.99393619,2503.8,2503.6,17.9903]
[1748043831531,3.99371046,2504.0,2503.6,17.9903]
[1748043831736,3.99387395,2503.9,2503.6,17.9903]
[1748043831937,3.9925328,2504.7,2503.7,11.966]
[1748043832134,3.99392922,2503.8,2503.7,11.966]
[1748043832332,3.99265351,2504.6,2503.7,11.966]
[1748043832571,3.99309984,2504.4,2503.8,3.99384781]
[1748043832773,3.99201596,2505.0,2503.8,8.0]
[1748043832943,3.99303069,2504.4,2503.9,4.79350877]
[1748043833267,3.99267276,2504.6,2503.9,4.48509576]
[1748043833568,3.99238664,2504.8,2504.0,8.0]
[1748043833743,0.03963473,2504.7,2504.1,21.145]
[1748043834072,3.99329127,2504.2,2504.1,21.145]
[1748043835142,3.99319602,2504.3,2504.1,21.145]
[1748043835373,3.99233471,2504.8,2504.1,21.145]
[1748043835575,3.99329127,2504.2,2504.1,21.145]
[1748043835935,3.99321441,2504.3,2504.1,21.145]
[1748043836142,3.99329127,2504.2,2504.1,21.145]
[1748043836355,3.9930156,2504.4,2504.1,21.145]
[1748043837437,3.9913625,2505.5,2504.3,0.7998]
[1748043837666,3.99157311,2505.3,2504.9,0.7998]
[1748043837870,0.05,2505.9,2505.5,3.99108651]
[1748043838135,0.05,2505.9,2505.8,11.99074147]
[1748043838338,0.05,2505.9,2505.8,33.13574147]
[1748043838958,0.05,2505.9,2505.8,33.93554147]
[1748043839236,1.24113911,2506.9,2505.8,33.93554147]
[1748043839237,0.05,2506.9,2506.5,3.98953216]
[1748043839438,0.05,2506.9,2506.7,0.7998]
[1748043840558,0.05,2506.9,2506.7,8.7998]
[1748043840861,0.05,2506.9,2506.8,15.67444527]
[1748043841066,0.05,2506.9,2506.8,11.68529576]
[1748043841266,0.05,2506.9,2506.8,15.67444527]
[1748043841452,0.05,2506.9,2506.8,16.91733367]
[1748043841780,6.70322006,2508.5,2507.0,0.7998]
[1748043841938,3.98758885,2507.8,2507.2,7.67369327]
[1748043842138,1.59818781,2507.8,2507.0,0.7998]
[1748043842371,3.98851308,2507.2,2507.1,21.138]
[1748043842952,3.98731024,2508.0,2507.1,21.138]
[1748043843271,3.98820533,2507.4,2507.2,33.1]
[1748043843579,3.98820533,2507.4,2507.3,21.138]
[1748043843902,3.98930865,2506.7,2506.6,17.231]
[1748043844097,4.38823951,2506.7,2506.6,38.369]
[1748043844442,5.16633951,2506.7,2506.6,38.369]
[1748043844765,3.99137862,2505.4,2505.3,0.7785]
[1748043844971,3.99169726,2505.2,2505.1,12.009]
[1748043845543,3.99169726,2505.2,2505.1,0.05]
[1748043845742,4.79002207,2505.2,2505.1,0.05]
[1748043845945,4.03133199,2505.2,2505.1,0.05]
[1748043846162,4.76979726,2505.2,2505.1,0.05]
[1748043846379,4.80943199,2505.2,2505.1,21.182]
[1748043846600,4.76979726,2505.2,2505.1,21.182]
[1748043846893,3.99169726,2505.2,2505.1,21.182]
[1748043847381,3.99169726,2505.2,2505.1,0.05]
[1748043847583,4.79002207,2505.2,2505.1,21.185]
[1748043847757,3.99169726,2505.2,2505.1,21.185]
[1748043850920,0.831,2506.0,2505.1,21.185]
[1748043851423,3.99076363,2505.8,2505.2,11.99159352]
[1748043851604,3.99066484,2505.9,2505.3,4.77326037]
[1748043851976,3.99066484,2505.9,2505.5,8.0]
[1748043852234,3.99027338,2506.1,2505.7,8.0]
[1748043852513,3.99027338,2506.1,2505.8,21.136]
[1748043852711,3.98984715,2506.4,2505.9,8.0]
[1748043852915,0.8146,2507.3,2506.1,8.0]
[1748043853121,3.98891119,2507.0,2506.4,11.9896955]
[1748043853326,3.98866271,2507.2,2506.6,8.0]
[1748043853530,3.98892132,2507.0,2506.7,0.7818]
[1748043854023,0.8146,2507.7,2506.7,4.46709576]
[1748043854176,3.98819557,2507.4,2507.0,8.0]
[1748043854371,3.98819557,2507.4,2506.9,3.98889492]
[1748043854372,3.98793658,2507.6,2507.2,8.0]
[1748043854573,3.98777888,2507.7,2507.3,11.96]
[1748043854772,3.9878837,2507.6,2507.3,11.96]
[1748043854973,3.98789269,2507.6,2507.3,11.96]
[1748043855207,3.98736174,2508.0,2507.3,11.96]
[1748043855412,3.988078,2507.5,2507.3,11.96]
[1748043855572,3.98812701,2507.5,2507.3,11.96]
[1748043855774,3.98797755,2507.6,2507.3,11.96]
[1748043855979,3.98811943,2507.5,2507.3,11.96]
[1748043856382,3.988354,2507.3,2507.2,8.0]
[1748043856583,3.988354,2507.3,2507.2,19.96]
[1748043857026,3.98825606,2507.4,2507.2,19.96]
[1748043857722,3.98851308,2507.2,2507.1,29.18]
[1748043858024,3.98851308,2507.2,2507.1,50.034]
[1748043858195,3.98762015,2507.8,2507.1,50.034]
[1748043858196,3.98817684,2507.5,2507.1,50.034]
[1748043858528,3.98755881,2507.8,2507.1,54.02266706]
[1748043858685,3.98766605,2507.8,2507.2,12.77771499]
[1748043858885,3.9875613,2507.8,2507.2,8.7893]
[1748043859286,4.03748063,2507.9,2507.2,12.77781306]
[1748043859623,3.98765165,2507.8,2507.2,8.7893]
[1748043859830,0.05,2507.9,2507.3,5.45721356]
[1748043860031,0.05,2507.9,2507.2,8.7893]
[1748043860032,0.05,2507.9,2507.8,12.77685881]
[1748043860184,0.05,2507.9,2507.8,33.62785881]
[1748043860612,0.05,2507.9,2507.8,32.83855881]
[1748043860800,4.03591834,2508.9,2508.3,0.7893]
[1748043860993,3.98644608,2508.5,2508.4,40.806]
[1748043861292,4.03588201,2508.9,2508.4,40.806]
[1748043861488,0.05,2508.9,2508.6,3.98625207]
[1748043861829,0.05,2508.9,2508.8,12.77036938]
[1748043862047,0.05,2508.9,2508.8,8.7844]
[1748043862352,0.05,2508.9,2508.8,12.77036938]
[1748043863416,0.05,2508.9,2508.8,8.7844]
[1748043863698,0.05,2509.9,2508.8,8.7844]
[1748043863910,0.05,2509.9,2508.9,6.24161356]
[1748043864132,3.98438122,2509.8,2509.1,8.0]
[1748043864299,3.98501849,2509.4,2509.2,11.952]
[1748043864487,4.0342683,2509.9,2508.9,0.7844]
[1748043864488,3.98487278,2509.5,2508.9,0.7844]
[1748043864694,3.98563766,2509.1,2508.9,0.7844]
[1748043864890,0.40342683,2509.8,2509.0,11.952]
[1748043865088,4.38787676,2509.8,2509.1,8.0]
[1748043865288,3.98453998,2509.7,2509.1,8.0]
[1748043865488,3.98512879,2509.4,2509.1,8.0]
[1748043865688,0.05,2509.9,2509.1,8.0]
[1748043865928,3.98479555,2509.6,2509.0,15.93753062]
[1748043866431,3.98475072,2509.6,2509.1,50.02839588]
[1748043866634,3.98461806,2509.7,2509.1,50.02839588]
[1748043866839,0.05,2509.9,2509.3,8.0]
[1748043866987,0.05,2509.9,2509.2,3.98517583]
[1748043867193,3.98442835,2509.8,2509.7,0.7844]
[1748043867420,3.98442835,2509.8,2509.7,21.6224]
[1748043868019,4.03423667,2509.9,2509.7,21.6224]
[1748043868409,3.98438122,2509.8,2509.7,21.6224]
[1748043868917,1.60054982,2509.8,2509.7,20.833]
[1748043869112,4.78320342,2509.8,2509.7,20.833]
[1748043871907,3.98713411,2508.1,2508.0,11.944]
[1748043872222,3.98713411,2508.1,2508.0,49.976]
[1748043872223,3.98708185,2508.1,2508.0,49.976]
[1748043872398,0.797,2508.7,2508.0,49.976]
[1748043872804,3.98664215,2508.4,2508.1,0.8124]
[1748043873136,3.98609922,2508.8,2508.2,3.98683215]
[1748043873309,3.98609922,2508.8,2508.3,8.0]
[1748043873637,0.797,2509.5,2508.4,3.986605]
[1748043873935,3.98576132,2509.0,2508.3,8.0]
[1748043874233,3.98588761,2508.9,2508.4,3.98659553]
[1748043875048,0.797,2509.5,2508.6,8.0]
[1748043875255,3.98522333,2509.3,2508.8,8.0]
[1748043875403,3.98560518,2509.1,2508.9,11.944]
[1748043875603,3.98560518,2509.1,2509.0,17.2]
[1748043876353,3.98545209,2509.2,2509.0,17.2]
[1748043876637,4.78142235,2509.8,2509.0,17.9768]
[1748043876842,3.98535707,2509.2,2509.0,17.9768]
[1748043877012,3.9854928,2509.1,2509.0,17.2]
[1748043877542,5.6051777,2509.1,2509.0,38.031]
[1748043878451,5.6051777,2509.1,2509.0,17.2]
[1748043878617,5.6051777,2509.1,2509.0,38.031]
[1748043879056,4.8080928,2509.1,2509.0,38.031]
[1748043879900,4.8080928,2509.1,2509.0,17.2]
[1748043880103,4.8080928,2509.1,2509.0,38.031]
[1748043881617,4.8080928,2509.1,2509.0,38.032]
[1748043881816,12.8080928,2509.1,2509.0,38.032]
[1748043882020,14.4874377,2509.1,2509.0,20.832]
[1748043882263,14.4874377,2509.1,2506.5,0.47168964]
[1748043882264,0.8074,2508.9,2506.5,0.47168964]
[1748043882440,0.8074,2508.6,2507.3,38.032]
[1748043882748,3.98781277,2507.7,2507.3,38.032]
[1748043882907,3.98801769,2507.6,2507.3,38.032]
[1748043883106,3.98671646,2508.4,2507.3,38.032]
[1748043883335,3.98584079,2508.9,2507.7,3.67352156]
[1748043883524,3.98673346,2508.4,2507.8,15.93146742]
[1748043883724,0.8074,2509.4,2508.0,8.787]
[1748043883923,3.98517514,2509.3,2508.3,8.0]
[1748043884122,3.98603031,2508.8,2508.4,17.202]
[1748043884441,3.98453998,2509.7,2508.6,0.787]
[1748043884641,3.98598891,2508.8,2508.6,0.787]
[1748043884853,3.9853616,2509.2,2508.6,0.787]
[1748043885016,3.98612827,2508.7,2508.6,0.787]
[1748043885207,3.98612827,2508.7,2508.6,32.554]
[1748043886060,3.98612827,2508.7,2508.6,20.608]
[1748043886269,3.98644608,2508.5,2508.4,17.202]
[1748043886446,3.98644608,2508.5,2508.4,37.81]
[1748043887245,3.98555136,2509.1,2508.5,3.98633161]
[1748043887539,3.98485754,2509.5,2508.5,8.0]
[1748043887846,3.98525707,2509.3,2508.9,0.7872]
[1748043888067,3.98453998,2509.7,2509.0,32.554]
[1748043888068,3.98533475,2509.2,2509.0,32.554]
[1748043888219,3.98512514,2509.4,2509.0,32.554]
[1748043888426,3.98508038,2509.4,2509.0,32.554]
[1748043888746,3.98460217,2509.7,2509.1,3.67352156]
[1748043888923,3.98485907,2509.5,2509.1,3.67352156]
[1748043889362,3.98474559,2509.6,2509.1,3.67352156]
[1748043889863,4.03430322,2509.9,2509.3,3.98511717]
[1748043890069,0.05,2509.9,2509.8,3.98438122]
[1748043890222,0.05,2509.9,2509.8,37.32158122]
[1748043890427,0.05,2509.9,2509.8,45.32158122]
[1748043891386,0.05,2509.9,2509.8,12.77158122]
[1748043891521,0.05,2510.9,2509.9,8.0]
[1748043891723,0.05,2510.9,2510.8,3.98279432]
[1748043891962,0.05,2510.9,2510.8,15.92679432]
[1748043892163,0.05,2510.9,2510.8,23.92679432]
[1748043892468,0.05,2510.9,2510.8,11.944]
[1748043892620,0.05,2510.9,2510.8,11.941]
[1748043894436,0.05,2510.9,2510.7,8.7951]
[1748043894633,0.05,2510.9,2510.8,19.941]
[1748043894964,0.05,2510.9,2510.8,24.71889432]
[1748043895363,0.05,2510.9,2510.8,20.7361]
[1748043895554,0.05,2510.9,2510.8,24.71889432]
[1748043895869,0.05,2510.9,2510.8,20.7331]
[1748043896227,0.05,2510.9,2510.8,58.5191]
[1748043896455,0.05,2510.9,2510.8,29.96889432]
[1748043896661,0.05,2510.9,2510.8,58.5191]
[1748043897058,0.05,2510.9,2510.8,25.191]
[1748043897282,0.05,2510.9,2510.8,57.724]
[1748043897771,0.00887692,2510.9,2510.8,57.724]
[1748043897952,3.98184279,2511.4,2510.8,57.724]
[1748043898153,3.9826357,2510.9,2510.8,57.724]
[1748043898468,4.03109549,2511.9,2510.9,0.7883]
[1748043898672,3.9817987,2511.5,2511.1,8.0]
[1748043898868,3.9817202,2511.5,2511.1,8.0]
[1748043899069,3.9817758,2511.5,2511.1,8.0]
[1748043899578,0.05,2511.9,2511.1,8.0]
[1748043899789,0.05,2511.9,2511.5,0.7883]
[1748043899933,0.05,2511.9,2511.7,8.0]
[1748043900140,0.05,2511.9,2511.8,17.189]
[1748043900697,4.0310502,2511.9,2511.8,17.189]
[1748043900994,4.83224553,2511.9,2511.8,37.781]
[1748043901207,5.65124553,2511.9,2511.8,37.781]
[1748043901658,4.8500502,2511.9,2511.8,37.781]
[1748043902497,4.8500502,2511.9,2511.8,17.189]
[1748043902674,4.8500502,2511.9,2511.8,37.776]
[1748043902876,3.98156128,2511.6,2511.4,17.185]
[1748043903189,3.98156128,2511.6,2511.5,37.772]
[1748043903190,3.98152572,2511.6,2511.5,37.772]
[1748043903398,3.98152572,2511.6,2510.8,11.934]
[1748043903399,3.98238022,2511.1,2510.8,11.934]
[1748043903691,0.869,2511.9,2511.0,8.0]
[1748043904009,3.98132975,2511.8,2511.5,8.0]
[1748043904210,3.98156961,2511.6,2511.3,8.0]
[1748043904415,3.98215992,2511.2,2511.1,0.8229]
[1748043904576,3.9817414,2511.5,2511.4,20.587]
[1748043904774,3.9824771,2511.0,2510.9,17.185]
[1748043905075,3.9824771,2511.0,2510.9,37.772]
[1748043906310,3.98374631,2510.2,2510.1,17.184]
[1748043906516,3.98374631,2510.2,2510.1,37.771]
[1748043906809,3.98295296,2510.7,2510.1,37.771]
[1748043907018,3.98214522,2511.3,2510.1,37.771]
[1748043907019,3.98358761,2510.3,2510.2,8.0]
[1748043907331,3.98358761,2510.3,2510.2,11.933]
[1748043907506,3.98358761,2510.3,2510.1,37.771]
[1748043907507,3.98344829,2510.4,2510.1,17.184]
[1748043907661,3.98344829,2510.4,2510.2,20.588]
[1748043907662,3.98358761,2510.3,2510.2,20.588]
[1748043907864,3.98374631,2510.2,2510.1,17.184]
[1748043908062,3.98374631,2510.2,2510.1,37.772]
[1748043908923,0.7623,2511.0,2510.1,37.772]
[1748043909217,3.9826527,2510.9,2510.2,8.03983294]
[1748043909413,3.98224529,2511.2,2510.7,0.7936]
[1748043909619,3.98246836,2511.1,2510.8,32.522]
[1748043909817,3.98260253,2511.0,2510.8,32.522]
[1748043910010,3.98233966,2511.1,2510.9,20.588]
[1748043910208,3.9824771,2511.0,2510.9,20.588]
[1748043910919,3.9824771,2511.0,2510.9,32.522]
[1748043911126,3.9824771,2511.0,2510.9,20.588]
[1748043911306,5.54125878,2511.0,2510.9,20.588]
[1748043911711,5.54125878,2511.0,2510.1,29.118]
[1748043911712,3.98374631,2510.2,2510.1,29.118]
[1748043912039,3.98374631,2510.2,2510.1,37.772]
[1748043913495,3.98533397,2509.2,2509.1,0.52168964]
[1748043913729,3.98533397,2509.2,2509.1,21.11168964]
[1748043913903,3.98533397,2509.2,2509.1,0.52168964]
[1748043914114,4.78238684,2509.2,2509.1,20.64]
[1748043914300,3.98533397,2509.2,2509.1,20.64]
[1748043915092,3.98533397,2509.2,2509.1,0.05]
[1748043915330,3.98533397,2509.2,2509.1,20.629]
[1748043916466,3.98533397,2509.2,2509.1,37.819]
[1748043916912,4.74073397,2509.2,2509.1,17.24]
[1748043917109,5.5377865,2509.2,2509.1,37.823]
[1748043917404,4.74073397,2509.2,2509.1,37.823]
[1748043919354,3.98676394,2508.3,2508.2,11.938]
[1748043919556,3.98676394,2508.3,2508.2,32.525]
[1748043920669,3.98676394,2508.3,2508.2,20.587]
[1748043921466,3.98692289,2508.2,2508.1,0.05]
[1748043921666,3.98692289,2508.2,2508.1,20.637]
[1748043922383,4.78410244,2508.3,2508.1,20.637]
[1748043922384,0.7554,2508.6,2508.1,20.637]
[1748043922583,3.98610526,2508.8,2508.2,11.97986328]
[1748043922863,3.98485754,2509.5,2508.4,3.98659138]
[1748043923069,3.67352156,2510.4,2508.2,11.94]
[1748043923070,11.942,2510.7,2508.8,8.0]
[1748043923267,1.92102213,2512.3,2508.8,8.0]
[1748043923268,3.98516817,2509.4,2508.9,32.533]
[1748043923467,0.7996,2510.1,2509.0,32.533]
[1748043923468,3.98533397,2509.2,2509.0,32.533]
[1748043923644,3.98612827,2508.7,2508.6,8.7743]
[1748043923845,3.98598813,2508.8,2508.6,41.3073]
[1748043924048,3.98584166,2508.9,2508.6,41.3073]
[1748043924249,4.78364162,2510.1,2508.6,41.3073]
[1748043924250,3.98612827,2508.7,2508.6,41.3073]
[1748043924445,3.98535528,2509.2,2508.2,3.67352156]
[1748043924446,3.98598615,2508.8,2508.2,0.7743]
[1748043924644,3.98668437,2508.4,2508.3,40.533]
[1748043924846,3.986605,2508.4,2508.3,32.533]
[1748043925049,3.986605,2508.4,2508.3,40.533]
[1748043925450,3.98692289,2508.2,2508.1,0.05]
[1748043925672,3.98692289,2508.2,2508.1,32.584]
[1748043926276,3.98692289,2508.2,2508.1,49.782]
[1748043926577,3.98692289,2508.2,2508.1,37.84]
[1748043927277,4.78429335,2508.2,2508.1,37.84]
[1748043927707,3.98692289,2508.2,2508.1,37.84]
[1748043928907,3.98692289,2508.2,2508.1,17.248]
[1748043929091,3.98692289,2508.2,2508.1,37.843]
[1748043931527,3.98692289,2508.2,2508.1,37.846]
[1748043932042,4.81052289,2508.2,2508.1,17.248]
[1748043932237,5.60789335,2508.2,2508.1,17.248]
[1748043933049,5.64752808,2508.2,2508.1,17.248]
[1748043933344,5.60789335,2508.2,2508.1,17.248]
[1748043933845,3.98787685,2507.6,2507.5,17.203]
[1748043934050,3.988354,2507.3,2507.2,11.946]
[1748043934213,3.988354,2507.3,2507.2,32.547]
[1748043934552,3.988354,2507.3,2507.2,40.547]
[1748043935132,3.988354,2507.3,2507.2,32.547]
[1748043936037,3.98851308,2507.2,2507.1,0.05]
[1748043936258,3.98851308,2507.2,2507.1,37.856]
[1748043936625,3.98851308,2507.2,2507.1,38.6099]
[1748043937036,3.98851308,2507.2,2507.1,37.856]
[1748043937435,3.98851308,2507.2,2507.1,49.804]
[1748043937944,3.98851308,2507.2,2507.1,37.856]
[1748043940665,0.8236,2507.8,2507.1,57.809]
[1748043940849,3.98767776,2507.8,2507.4,8.0]
[1748043941019,3.98688804,2508.3,2507.8,3.98749525]
[1748043941219,3.98643166,2508.6,2508.0,12.7410409]
[1748043941422,4.38341281,2509.5,2508.2,8.0]
[1748043941423,3.98605797,2508.8,2508.2,8.0]
[1748043941637,3.98550488,2509.1,2508.4,8.0]
[1748043941838,3.98550488,2509.1,2508.1,49.763]
[1748043941839,3.98612827,2508.7,2508.6,0.7638]
[1748043942036,3.98508355,2509.4,2508.8,3.98587037]
[1748043942251,0.61290604,2509.7,2508.9,0.0398508]
[1748043942433,4.03424465,2509.9,2509.0,8.7638]
[1748043942660,0.38257542,2509.9,2509.2,8.0]
[1748043942862,3.98485754,2509.5,2509.4,0.7705]
[1748043943266,4.36695215,2509.9,2509.4,0.7705]
[1748043943482,3.9844237,2509.8,2509.4,0.7705]
[1748043943685,3.98481278,2509.6,2509.4,0.7705]
[1748043944057,3.9845963,2509.7,2509.4,0.7705]
[1748043944258,0.05,2509.9,2509.4,0.7705]
[1748043944461,3.98501633,2509.4,2509.3,40.555]
[1748043944663,3.98501633,2509.4,2509.3,32.53]
[1748043945473,3.98495881,2509.5,2509.3,32.53]
[1748043945799,0.05,2509.9,2509.4,8.7705]
[1748043946100,0.05,2509.9,2509.6,8.0]
[1748043946897,3.9845048,2509.8,2509.7,11.945]
[1748043947399,3.98485754,2509.5,2509.4,0.7705]
[1748043947605,3.98485754,2509.5,2509.4,32.525]
[1748043947778,0.05,2509.9,2509.5,8.0]
[1748043947979,3.98467984,2509.7,2509.5,8.0]
[1748043948369,3.98469875,2509.6,2509.5,8.0]
[1748043948878,3.98455127,2509.7,2509.5,8.0]
[1748043949084,0.05,2509.9,2509.5,8.0]
[1748043949393,0.05,2509.9,2509.1,17.208]
[1748043949394,3.98440387,2509.8,2509.6,32.522]
[1748043949603,3.98463831,2509.7,2509.6,40.522]
[1748043950113,0.05,2509.9,2509.6,40.522]
[1748043950331,0.05,2509.9,2509.7,8.83334006]
[1748043950508,0.05,2509.9,2509.7,8.7935]
[1748043950818,4.03429772,2509.9,2509.7,8.7935]
[1748043951792,3.98474658,2509.6,2509.4,8.0]
[1748043951992,3.98474658,2509.6,2509.5,40.52]
[1748043952388,3.98474658,2509.6,2509.5,28.577]
[1748043952594,3.98474658,2509.6,2509.5,20.577]
[1748043952595,4.78167736,2509.6,2509.5,20.577]
[1748043952795,4.78167736,2509.6,2509.1,17.208]
[1748043952796,3.98533397,2509.2,2509.1,17.208]
[1748043953005,4.74713397,2509.2,2509.1,37.782]
[1748043953286,4.7867687,2509.2,2509.1,37.782]
[1748043953486,3.98596938,2508.8,2508.7,0.47168964]
[1748043953794,3.98596938,2508.8,2508.7,21.04568964]
[1748043954179,4.74776938,2508.8,2508.7,21.04568964]
[1748043954621,4.74776938,2508.8,2508.7,20.574]
[1748043956320,4.74776938,2508.8,2508.7,37.772]
[1748043957249,3.98596938,2508.8,2508.7,37.772]
[1748043957542,3.98596938,2508.8,2508.7,49.715]
[1748043958744,4.78314922,2508.8,2508.7,37.776]
[1748043959045,3.98596938,2508.8,2508.7,37.776]
[1748043959820,0.7563,2509.7,2508.7,38.6047]
[1748043960006,3.98596938,2508.8,2508.7,38.6047]
[1748043960650,3.98495985,2509.5,2508.7,38.6047]
[1748043960815,3.98596938,2508.8,2508.7,17.198]
[1748043961022,3.98596938,2508.8,2508.7,37.776]
[1748043961206,11.98596938,2508.8,2508.7,37.776]
[1748043961412,3.98596938,2508.8,2508.7,37.776]
[1748043962323,3.98596938,2508.8,2508.7,49.72]
[1748043962664,0.7563,2509.8,2508.8,0.8287]
[1748043962833,3.98332114,2510.5,2508.9,0.03985024]
[1748043963036,4.03428738,2509.9,2508.9,3.98573471]
[1748043963217,3.98544055,2509.2,2508.8,8.8287]
[1748043963560,3.98581051,2508.9,2508.8,0.8287]
[1748043964061,3.98596938,2508.8,2508.7,17.198]
[1748043964267,3.98596938,2508.8,2508.7,37.774]
[1748043964419,3.98585492,2508.9,2508.7,37.774]
[1748043964621,3.98596938,2508.8,2508.7,37.774]
[1748043965022,3.98596938,2508.8,2508.7,49.717]
[1748043966433,3.98596938,2508.8,2508.7,37.774]
[1748043966769,4.78314947,2508.8,2508.7,37.774]
[1748043967066,4.78314947,2508.8,2508.7,17.198]
[1748043967267,4.78314947,2508.8,2508.7,37.774]
[1748043967912,3.98596938,2508.8,2508.7,37.774]
[1748043968269,3.98596938,2508.8,2508.7,49.718]
[1748043968934,0.7563,2509.4,2508.7,49.718]
[1748043969212,0.064,2509.6,2508.8,0.03985653]
[1748043969423,0.064,2509.6,2508.8,14.88855285]
[1748043969424,4.04879569,2509.6,2508.8,14.88855285]
[1748043969609,3.98552232,2509.1,2508.8,14.8487]
[1748043969978,0.064,2509.6,2508.8,8.8287]
[1748043970310,4.74226938,2508.8,2508.7,17.198]
[1748043971382,8.0,2509.1,2507.1,0.05]
[1748043971581,0.55,2509.2,2507.1,0.05]
[1748043971582,12.76417685,2507.6,2507.1,0.05]
[1748043971885,14.43936857,2507.6,2507.1,0.05]
[1748043972478,3.98819494,2507.4,2507.1,0.05]
[1748043972827,3.98851308,2507.2,2507.1,0.05]
[1748043973388,3.98851308,2507.2,2507.1,20.633]
[1748043974026,4.78620116,2507.2,2507.1,20.633]
[1748043974399,3.99010454,2506.2,2506.1,0.05]
[1748043974730,3.99169726,2505.2,2504.9,20.583]
[1748043974885,3.99169726,2505.2,2505.1,1.01522388]
[1748043975940,3.99169726,2505.2,2505.1,0.38323324]
[1748043976229,3.99169726,2505.2,2505.1,21.55723324]
[1748043977010,3.99169726,2505.2,2505.1,0.38323324]
[1748043977207,3.99169726,2505.2,2505.1,21.56523324]
[1748043978047,3.99169726,2505.2,2504.1,8.05]
[1748043978048,3.99329127,2504.2,2504.1,0.05]
[1748043978260,3.99329127,2504.2,2504.1,21.232]
[1748043978756,3.99329127,2504.2,2504.1,33.184]
[1748043978954,0.7949,2505.2,2504.1,33.184]
[1748043979246,3.99291188,2504.5,2504.2,8.0]
[1748043979409,3.99292852,2504.5,2504.1,0.05]
[1748043979608,3.99297236,2504.4,2504.3,41.142]
[1748043979825,3.99280729,2504.6,2504.3,33.142]
[1748043980023,3.99279184,2504.6,2504.3,33.142]
[1748043980437,3.99272049,2504.6,2504.3,33.142]
[1748043980648,3.99172516,2505.2,2504.4,0.81542624]
[1748043980801,0.7949,2505.9,2504.8,8.0]
[1748043981008,3.99158359,2505.3,2504.9,17.9925]
[1748043981216,3.99181153,2505.2,2505.0,33.146]
[1748043981405,3.9918116,2505.2,2505.0,33.146]
[1748043981903,3.99178135,2505.2,2505.0,33.146]
[1748043982306,3.99136377,2505.5,2505.0,33.146]
[1748043982638,3.99010454,2506.2,2505.0,33.146]
[1748043982839,3.99147733,2505.4,2505.0,33.146]
[1748043983243,3.99034545,2506.1,2505.0,33.146]
[1748043983550,3.98930865,2506.7,2505.3,3.9914453]
[1748043983748,3.9894678,2506.6,2505.4,11.958]
[1748043984059,3.98930865,2506.7,2505.4,11.958]
[1748043984272,3.98962696,2506.5,2505.5,11.958]
[1748043984556,3.99026375,2506.1,2505.6,21.193]
[1748043984751,3.99090074,2505.7,2505.6,21.193]
[1748043986531,3.99090074,2505.7,2505.2,0.8018]
[1748043986830,3.99201596,2505.0,2504.9,29.175]
[1748043987049,3.99201596,2505.0,2504.9,50.369]
[1748043987451,3.99201596,2505.0,2504.9,38.411]
[1748043987833,4.74118744,2505.0,2504.9,38.411]
[1748043988358,3.99249411,2504.7,2504.6,21.196]
[1748043988561,4.82732884,2504.7,2504.6,21.196]
[1748043988733,4.78769411,2504.7,2504.6,21.196]
[1748043988936,5.66569885,2504.7,2504.6,21.196]
[1748043989659,4.78769411,2504.7,2504.6,21.196]
[1748043990155,3.99249411,2504.7,2504.6,21.196]
[1748043991148,3.99218973,2504.9,2504.6,21.196]
[1748043991360,3.99234293,2504.8,2504.6,21.196]
[1748043991557,3.99125587,2505.5,2504.7,0.8018]
[1748043991856,3.99225883,2504.9,2504.7,0.8018]
[1748043992060,3.99106002,2505.6,2504.7,0.8018]
[1748043992359,3.99201985,2505.0,2504.7,0.8018]
[1748043992549,3.99218236,2504.9,2504.7,0.8018]
[1748043992755,3.99233471,2504.8,2504.7,12.7638]
[1748043992934,3.99233471,2504.8,2504.7,33.9638]
[1748043993146,3.99206321,2505.0,2504.7,33.9638]
[1748043993460,3.99233471,2504.8,2504.7,33.9638]
[1748043993954,3.99233471,2504.8,2504.7,21.2]
[1748043994261,3.99225423,2504.9,2504.7,33.162]
[1748043994464,3.99233471,2504.8,2504.7,33.162]
[1748043994826,3.99233471,2504.8,2504.7,21.2]
[1748043995358,0.47860341,2505.7,2504.7,21.2]
[1748043995561,3.99113818,2505.6,2504.8,8.8018]
[1748043995719,3.99026375,2506.1,2505.2,0.8018]
[1748043995923,3.99137862,2505.4,2505.3,50.387]
[1748043996959,3.99137862,2505.4,2505.3,17.225]
[1748043997123,3.99137862,2505.4,2505.3,29.187]
[1748043997323,4.77317862,2505.4,2505.3,38.424]
[1748043997964,3.99137862,2505.4,2505.3,50.385]
[1748043998843,3.99125916,2505.5,2505.3,50.385]
[1748043999077,3.99137862,2505.4,2505.3,50.385]
[1748043999754,4.32395404,2505.4,2505.3,50.385]
[1748043999956,4.32395404,2505.4,2505.3,38.424]
[1748044000370,5.15547536,2505.4,2505.3,38.424]
[1748044002820,4.82289994,2505.4,2505.3,38.424]
[1748044004385,3.99137862,2505.4,2505.3,38.424]
[1748044005262,4.32395404,2505.4,2505.3,38.424]
[1748044007181,4.32395404,2505.4,2505.3,50.386]
[1748044008107,0.33257542,2505.4,2505.3,50.386]
[1748044008309,0.33257542,2505.4,2505.3,51.2117]
[1748044008510,4.32395404,2505.4,2505.3,51.2117]
[1748044008813,0.33257542,2505.4,2505.3,51.2117]
[1748044009571,0.064,2506.2,2505.5,8.8257]
[1748044009931,0.064,2506.2,2505.8,7.67312403]
[1748044010074,4.05411218,2506.2,2505.9,32.57]
[1748044010273,0.064,2506.2,2505.9,32.57]